Cogmind - Beta 16.1 @@@ ROGUE MODE // 2026.03.05 @ 15:34:33 Player: squibblerqwq Result: Destroyed by S2-LK7(R) with Subdweller Beam Cannon Performance ------------- Evolutions (0) 0 Regions Visited (2) 400 Robots Destroyed (26) 130 Value Destroyed (559) 559 Prototype IDs (0) 0 Alien Tech Used (0) 0 Bonus (-84) -84 TOTAL SCORE: 1005 Bonus ------- Friendly Fire -84 Cogmind --------- Core Integrity 0/250 Matter 280/300 Energy 200/200 System Corruption 0% Temperature Cool (9) Movement Walking (120) Location -10/Subcaves Parts ------- > --- POWER (1) -------- Subdweller Power Source > --- PROPULSION (2) --- Carbon-fiber Leg > --- UTILITY (2) ------ Subdweller Optics > --- WEAPON (2) ------- Medium Laser Mini Grenade Launcher > --- INVENTORY (5) ---- Subdweller Monowheel Subdweller Beam Cannon Makeshift Spear Peak State ------------ > --- POWER ------------ Light Ion Engine > --- PROPULSION ------- Subdweller Monowheel Subdweller Monowheel > --- UTILITY ---------- Scrap Shield > --- WEAPON ----------- Makeshift Spear Makeshift Spear > --- INVENTORY -------- Flight Unit Flight Unit Medium Laser Particle Gun Mini Grenade Launcher [Rating: 17] Favorites ----------- Power Light Ion Engine Engine Light Ion Engine Propulsion Aluminum Leg Leg Aluminum Leg Wheel Wheel Hover Unit Hover Unit Flight Unit Flight Unit Utility Medium Storage Unit Device Subdweller Optics Storage Medium Storage Unit Processor Signal Interpreter Protection Scrap Shield Weapon Light Assault Rifle Energy Gun Particle Gun Ballistic Gun Light Assault Rifle Launcher Mini Grenade Launcher Piercing Weapon Makeshift Spear Build | -11 -10 -10 ------- Run | Yrd Mat Sub Slots Evolved . | . . . Power . | . . . Propulsion . | . . . Utility . | . . . Weapon . | . . . Parts Attached 35 | 5 18 12 Power 4 | 1 2 1 Engine 4 | 1 2 1 Core . | . . . Reactor . | . . . Propulsion 14 | 2 7 5 Treads . | . . . Leg 4 | . 3 1 Wheel 4 | 2 . 2 Hover 2 | . 2 . Flight 4 | . 2 2 Utility 7 | . 5 2 Device 1 | . . 1 Storage 4 | . 4 . Processor 1 | . 1 . Hackware . | . . . Protection 1 | . . 1 Artifact . | . . . Weapon 10 | 2 4 4 Energy Gun 2 | . . 2 Energy Cannon . | . . . Ballistic Gun 4 | 2 2 . Ballistic Cannon . | . . . Launcher 2 | . 2 . Special Weapon . | . . . Impact Weapon . | . . . Slashing Weapon . | . . . Piercing Weapon 2 | . . 2 Special Melee Weapon . | . . . Unidentified Prototypes . | . . . Parts Lost 5 | . . 5 Power . | . . . Propulsion 3 | . . 3 Utility 1 | . . 1 Weapon 1 | . . 1 Highest Loss Streak 4 | . . 4 To Critical Strikes . | . . . Average Backups 6 | 2 8 4 Power . | . 1 . Propulsion 1 | 1 1 1 Utility 1 | . 1 . Weapon 3 | . 3 2 Tool/Special . | . . . Unused Backups 17 | 1 8 8 Power 2 | . 1 1 Propulsion 2 | . 1 1 Utility 5 | . 3 2 Weapon 7 | 1 2 4 Tool/Special 1 | . 1 . Average Slot Usage (%) 87 | . 90 79 Engine 14 | . 14 14 Leg 8 | . 10 1 Wheel 8 | . 7 8 Hover 5 | . 3 10 Flight 3 | . 4 2 Storage 9 | . 13 . Processor 5 | . 7 . Protection 3 | . . 11 Energy Gun 5 | . . 17 Ballistic Gun 15 | . 22 1 Launcher 6 | . 5 8 Peak Build Rating 17 | 5 9 17 Average Rating 8 | 3 7 10 On Entrance 4 | . 5 9 Avg Prop Armor Cover (%) 1 | . . 1 Naked Turns . | . . . Heaviest Build 27 | 6 26 27 Greatest Support 40 | 20 20 40 Greatest Overweight (x) 6 | . 4 6 Average Overweight (x) . | . . . Largest Inventory Capacity 15 | 5 15 10 Average Capacity 8 | 5 9 5 Most Carried 10 | 5 10 10 Average Carried 6 | 2 8 4 Final Capacity 10 | 5 10 5 Final Carried 10 | 5 10 3 Class Distribution -------------------- 91% | Mutant 8% | Subdweller-Mutant Dominant Class ---------------- Mutant | -10/Materials Mutant | -10/Subcaves Resources | -11 -10 -10 ----------- Run | Yrd Mat Sub Matter Collected 926 | 262 370 294 Remotely . | . . . Salvage Created 531 | 41 410 80 Parts 51 | 3 38 10 Haulers Intercepted . | . . . Recyclers Shooed . | . . . Parts Field Recycled . | . . . Retrieved Matter . | . . . Parts Self-Destructed 14 | . . 14 Prevented . | . . . Parts Restored . | . . . Kills | -11 -10 -10 ------- Run | Yrd Mat Sub Combat Hostiles Destroyed 21 | 1 15 5 Guns 16 | 1 13 2 AOE 5 | . 2 3 Classes Destroyed 5 | 1 2 2 Turret 2 | . . 2 Watcher 3 | . 3 . Swarmer 12 | . 9 3 Grunt 7 | 1 6 . Subdweller 2 | . . 2 Best Kill Streak 5 | 1 4 5 Combat Bots Only 4 | 1 4 3 Max Kills in Single Turn 1 | 1 1 1 Gunslinging . | . . . Exploded 1 | . 1 1 Melee . | . . . Uniques/NPCs Destroyed . | . . . Combat | -11 -10 -10 -------- Run | Yrd Mat Sub Hostile Shots Fired 180 | 3 58 119 Missed 74 | 1 17 56 Hits 106 | 2 41 63 Projectile 106 | 2 41 63 Critical Strikes 3 | . . 3 Damage Taken 1126 | 22 485 619 Core 269 | . 95 174 Absorbed by Shields . | . . . Core Remaining (%) 100 | 100 . . Volleys Fired 81 | 3 56 22 Largest 2 | 2 2 2 Hottest 115 | 40 50 115 Shots Fired 150 | 6 112 32 Gun 135 | 6 108 21 Cannon . | . . . Launcher 15 | . 4 11 Special . | . . . Kinetic 116 | 6 108 2 Thermal 19 | . . 19 Explosive 15 | . 4 11 Electromagnetic . | . . . Robot Hit Streak 10 | 1 10 9 Robot Miss Streak 5 | 1 5 2 Penetration Max . | . . . Secondary Targets . | . . . Shots Hit Robots 75 | 3 56 16 Core Hits 49 | 3 28 18 Critical Kills 1 | . 1 . Critical Parts Destroyed . | . . . Critical Strikes 3 | . 1 2 Burn 2 | . . 2 Destroy 1 | . 1 . Melee Attacks . | . . . Impact . | . . . Slashing . | . . . Piercing . | . . . Sneak Attacks . | . . . Combat Hostiles . | . . . Follow-up Attacks . | . . . Damage Inflicted 1649 | 43 698 908 Guns 768 | 43 523 202 Cannons . | . . . Explosions 881 | . 175 706 Melee . | . . . Ramming . | . . . Kinetic 575 | 43 523 9 Thermal 193 | . . 193 Explosive 881 | . 175 706 Electromagnetic . | . . . Impact . | . . . Slashing . | . . . Piercing . | . . . Highest Corruption . | . . . Average Corruption . | . . . Corruption Purged . | . . . Corruption Blocked . | . . . Overload Shots . | . . . Overflow Damage 19 | . . 19 Projectiles . | . . . Explosions 19 | . . 19 Melee . | . . . Knockbacks . | . . . Impact . | . . . Kinetic . | . . . Secondary . | . . . Self-Inflicted Damage 66 | . 28 38 Shots 3 | . 2 1 Rammed . | . . . Targets Rammed . | . . . Kicked . | . . . Crushed . | . . . Highest Temperature 23 | 12 19 23 Average Temperature 9 | 9 8 15 Received Heat Transfer 456 | 12 162 282 Siege Activations . | . . . Martial Activations . | . . . Shielding Activations . | . . . Robots Disrupted . | . . . Combat Hostiles . | . . . Robots Corrupted . | . . . Combat Hostiles . | . . . Parts Fried . | . . . Impact Corruptions . | . . . Robots Melted . | . . . Combat Hostiles . | . . . Parts Melted 1 | . . 1 Heat Transferred 629 | . . 629 Parts Sabotaged . | . . . Parts Stolen . | . . . Parts Stripped . | . . . Power Chain Reactions . | . . . Alert | -11 -10 -10 ------- Run | Yrd Mat Sub Maximum Alert Level 1 | . 1 . Low Security (%) 97 | 100 96 . Level 1 2 | . 3 . Level 2 . | . . . Level 3 . | . . . Level 4 . | . . . Level 5 . | . . . High Security . | . . . Max Security . | . . . Peak Influence 214 | 20 214 . Initial 6 | . 6 . Average 109 | 3 116 . Influence Increases 682 | 20 487 175 Destroy 0b10 Robot/C 420 | 20 300 100 Destroy 0b10 Robot/NC 15 | . 15 . Destroy Leader 76 | . 76 . Destroy Structure 21 | . 21 . Partial Spotted 15 | . 15 . Lose Combat Pursuer 135 | . 60 75 Influence Decreases 595 | 10 414 171 Entered New Map 45 | . 4 41 Time Decay 510 | 10 410 90 Lost Part 40 | . . 40 Squads Dispatched 3 | . 3 . Investigation 1 | . 1 . Extermination . | . . . Reinforcement 2 | . 2 . Assault . | . . . Garrison . | . . . Intercept . | . . . Searches Triggered . | . . . Construction Impeded . | . . . Haulers Reinforced . | . . . Active Scanning Responses . | . . . Cargo Convoy Interrupts . | . . . Stealth | -11 -10 -10 --------- Run | Yrd Mat Sub Distress Signals 2 | . 2 . Communications Jammed . | . . . Distress Signals . | . . . Times Spotted 55 | 1 29 25 Peak Tracking Total 8 | 1 8 5 Tactical Retreats 4 | . 2 2 Traps | -11 -10 -10 ------- Run | Yrd Mat Sub Traps Triggered 3 | . 3 . Indirectly . | . . . Trap Hack Attempts . | . . . Triggered . | . . . Disarmed . | . . . Reprogrammed . | . . . Reused . | . . . Traps Extracted . | . . . Installed . | . . . Triggered . | . . . Machines | -11 -10 -10 ---------- Run | Yrd Mat Sub Machines Disabled 3 | . . 3 Max in Single Turn 1 | . . 1 Machines Repaired . | . . . Machines Dismantled . | . . . Machines Sabotaged . | . . . Overloaded Fab Kills . | . . . Hacking | -11 -10 -10 --------- Run | Yrd Mat Sub Machines Accessed 3 | . 2 1 Terminals 2 | . 2 . Fabricators . | . . . Repair Stations . | . . . Recycling Units . | . . . Scanalyzers . | . . . Garrison Access . | . . . Total Hacks 6 | . 3 3 Successful 6 | . 3 3 Failed . | . . . Catastrophic . | . . . Database Lockouts . | . . . Manual . | . . . Terminals 3 | . 3 . Fabricators . | . . . Repair Stations . | . . . Recycling Units . | . . . Scanalyzers . | . . . Garrison Access . | . . . Terminal Hacks 6 | . 3 3 Record 4 | . 1 3 Alert Level 2 | . 2 . Fabricator Hacks . | . . . Repair Station Hacks . | . . . Recycling Unit Hacks . | . . . Scanalyzer . | . . . Garrison Access Hacks . | . . . Unauthorized Hacks . | . . . Terminals . | . . . Fabricators . | . . . Repair Stations . | . . . Recycling Units . | . . . Scanalyzers . | . . . Garrison Access . | . . . Data Cores Recovered . | . . . Used . | . . . Hacking Detections . | . . . Full Trace Events . | . . . Feedback Events . | . . . Feedback Blocked . | . . . Robot Schematics Acquired . | . . . Robots Built . | . . . Authchips . | . . . Time . | . . . Total Robot Build Rating . | . . . Part Schematics Acquired . | . . . Parts Built . | . . . Authchips . | . . . Time . | . . . Total Part Build Rating . | . . . Part Studies Acquired . | . . . Parts Repaired . | . . . Time . | . . . Parts Recycled . | . . . Recycled Matter . | . . . Retrieved Matter . | . . . Retrieved Components . | . . . Parts Scanalyzed . | . . . Part Schematics Acquired . | . . . Parts Damaged . | . . . Bothacking | -11 -10 -10 ------------ Run | Yrd Mat Sub Used RIF Installer . | . . . Robots Hacked . | . . . Non-combat . | . . . Combat . | . . . Robot Hacks Applied . | . . . Relay Couplers Released . | . . . Fabnet Peak Effective % . | . . . Robots Rewired . | . . . Allies Hacked . | . . . Hacks Repelled . | . . . Allies | -11 -10 -10 -------- Run | Yrd Mat Sub Total Allies . | . . . Largest Group . | . . . Highest-Rated Group . | . . . Highest-Rated Ally . | . . . Total Orders . | . . . Ally Attacks . | . . . Total Damage . | . . . Kills . | . . . Allies Corrupted . | . . . Allies Melted . | . . . Intel | -11 -10 -10 ------- Run | Yrd Mat Sub Active Infowar (turns) 49 | . . 49 Optics 49 | . . 49 Robot Analysis Total . | . . . Derelict Logs Recovered . | . . . Drone Launches . | . . . Drone Recoveries . | . . . Exploration | -11 -10 -10 ------------- Run | Yrd Mat Sub Turns Passed 1973 | 93 1314 566 Spaces Moved 1335 | 84 934 317 Core 28 | 25 . 3 Treads . | . . . Legs 354 | . 307 47 Wheels 548 | 59 352 137 Hover 249 | . 133 116 Flight 156 | . 142 14 Fastest Speed 50 | 50 80 110 Average Speed 119 | 71 114 146 Slowest Speed 520 | 80 360 520 Overloaded Moves . | . . . Propulsion Burnouts . | . . . Robots Hopped . | . . . Potential Cave-ins . | . . . Cave-ins Triggered . | . . . Exploration Rate (%) 43 | 5 96 28 Regions Visited 2 Branch Regions 1 Pre-discovered Areas 1 | . . 1 Known Exits Taken 1 | . 1 . Unknown Exits Taken 1 | 1 . . Scrap Searched . | . . . Spaces Dug . | . . . Terrain Destroyed 68 | . 23 45 Melee . | . . . Projectile . | . . . AOE 68 | . 23 45 Terrain Rammed . | . . . Walls Destroyed . | . . . Machines Disabled . | . . . Actions | -11 -10 -10 --------- Run | Yrd Mat Sub Total 1594 | 112 1090 392 Wait 44 | 9 24 11 Move 1333 | 83 933 317 Hop . | . . . Pick Up 57 | 11 32 14 Fast Attach . | . . . Attach 32 | 5 19 8 Detach 1 | . 1 . Swap 7 | . . 7 Drop 39 | 1 25 13 Fire 81 | 3 56 22 Melee . | . . . Ram . | . . . Kick . | . . . Crush . | . . . Escape Stasis . | . . . Rewire . | . . . Trap . | . . . Miscellaneous . | . . . Route ------- -11/Scrapyard -10/Materials (discovered 5 exits: *Mat x2 / *Min x2 / *Sub) -10/Subcaves (discovered 1 exit: [*Rec]) History --------- Turn | Location | Event 2 | -11/Scrapyard | Met Revision 17 62 | -11/Scrapyard | Discovered new exit (range 8) 94 | -11/Scrapyard | Entered Materials 296 | -10/Materials | Discovered new exit (range 16) 311 | -10/Materials | Build established: Mutant 337 | -10/Materials | Discovered new exit (range 12) 375 | -10/Materials | Discovered new exit (range 16) 535 | -10/Materials | Discovered new exit (range 16) 1296 | -10/Materials | Identified exit to Mines 1394 | -10/Materials | Discovered new exit (range 8) 1397 | -10/Materials | Identified exit to Materials 1407 | -10/Materials | Identified exit to Subcaves 1408 | -10/Materials | Entered Subcaves 1543 | -10/Subcaves | Ambushed by swarm of Subdwellers 1584 | -10/Subcaves | Lost 3 allies 1627 | -10/Subcaves | Shifting Twisted Machinery released Mak. Spear 1770 | -10/Subcaves | Visited Clippyterm 1773 | -10/Subcaves | Learned location of Deep Caves (-7) 1807 | -10/Subcaves | A swath of the cavern ceiling suddenly collapsed 1882 | -10/Subcaves | Core integrity fell below 50% 1892 | -10/Subcaves | Discovered new exit (range 15) 1899 | -10/Subcaves | Core integrity fell below 20% 1926 | -10/Subcaves | Lost 4 parts (2n1u1w) 1973 | -10/Subcaves | Ambushed by Subdweller buried in earth 1974 | -10/Subcaves | Destroyed by S2-LK7(R) with Subdweller Beam Cannon Last Messages --------------- Lgt. Ion Engine fries itself beyond repair. Flight Unit destroyed. Particle Gun destroyed. Machine disabled. Autobeam Turret destroyed. Machine disabled. Autobeam Turret destroyed. The unstable cave ceiling collapses. Acquired Carbon-fiber Leg. Acquired 55 matter. Acquired Scrap Shield Fragment. Dropped Scrap Shield Fragment. Acquired Sub. Optics. [Achievement: Spot Them First] Acquired Sub. Monowheel. Acquired 10 matter. [Achievement: Do Not Disturb] S2-LK7(R): "GOODGOOD!" 3F-F3Z(R) destroyed. [Achievement: First Step to Greatness] Map ----- +----------------------------------------------------+ | ##= ]"## ###???????????????????????????????????? | | #??# #####?????????????????????????????????????? | | ???## ##?###????????????????????????????????????? | | ????# ### ##???????????????????????????????????? | | ???## #???????????????????????????????????? | | ???# #???????????????????????????????????? | | # # #???????????????????????????????????? | | ##### #????????????????##?????????????????? | | #???# #???????????????? ??????????????????? | | ####?#### #??????????????? ??????????????????? | | ???### # #??????????????? ??????????????????? | | ???# ##??????????????? #??????????????????? | | ???## #???????????????? ##?????????????????? | | ???# #### #??????????????? ##????????????????? | | ???##???# ##?????????????? #????????????????? | | ???????### #??????????###? ?????????????????? | | ???????# ##????????? ## ??????????????????? | | ???????# ########?? #??????????????????? | | ???????# ##?# #####??????????????? | | # ## % #?# #????? ##??????? | | # #?## #### #### ##?????? | | # ## ???# ###?# ##????? | | ????## #??## #???# #????? | | ?????###???# #???# ??????? | | ??????????## ##### #????????????? | | ?????????## @ & R #????????????? | | ???# ##=%& R ##????????????? | | ???## ## ### #??? #????????????? | | ????##### #?###?## #????? #?????????? | | ????????####???????## #?????? #?????????? | | ????????????????????## #???????#####?????????? | | ?????????????????????# #?????????????????????? | | ?????????????????????#### #????????????????????? | | ????????????????????????? #???????????????????? | | ????????????????????????? #???????????????????? | | ????????????????????????? #???????????????????? | | ????????????????????????? #???????????????????? | | ????????????????????????? ##???????????????????? | | ????????????????????????? #????????????????????? | | ????????????????????????? #????????????????????? | | ????????????????????????? #????????????????????? | | ????????????????????????? ????????????????????? | | ?????????????????????????? ????????????????????? | | ?????????????????????????? #????????????????????? | | ??????????????????????????###????????????????????? | | ?????????????????????????????????????????????????? | | ?????????????????????????????????????????????????? | | ?????????????????????????????????????????????????? | | ?????????????????????????????????????????????????? | | ?????????????????????????????????????????????????? | +----------------------------------------------------+ Best States ------------- Heat Dissipation 25 Energy Generation 15 Energy Capacity 250 Matter Stores 300 Matter Capacity 300 Sight Range 21 Terrain Scan Density 10 Armor Coverage 800 Evasion (%) 55 Item Schematics ----------------- None Robot Schematics ------------------ None Fabricated ------------ Nothing Repaired ---------- Nothing Studied --------- None Alien Tech Used ----------------- None Achievements -------------- Crack Shot Do Not Disturb First Step to Greatness Spot Them First Storm Trooper Uninvited Guest Challenges ------------ None Game ------ Seed CouplerSurgeCasing Manual? 0 Play Time 00:50:09 Cumulative 0.8 hours Start 2026.03.05 @ 14:41:34 End 2026.03.05 @ 15:34:33 Sessions 1 Manual Loads 0 Difficulty Rogue Special Mode None Game No. 1 Rogue 1 Adventurer 0 Explorer 0 Win Type - Total 0 Types 0/0/0/0/0/0/0/0/0/0 Lore% 0 Gallery% 1 Achievement% 1 Wizard Run 0 Options --------- Layout 1 ASCII 0 Keyboard 0 Movement Numpad Keybinds 0 Fullscreen 1 Font 24/Smallcaps Map View 50x35 Zoom Use 2% Tactical HUD 0 Map Filters NONE Filters NONE Steam 1 RUN: 67e6ad64-908a-4513-a4a4-12a767d42e38